[Event "Romanian Superliga 2024"]
[Site "Mamaia"]
[Date "2024.09.28"]
[Round "1.1"]
[White "Pranav Vijay"]
[Black "Hamitevici, Vladimir"]
[Result "1-0"]
[ECO "B90"]
[WhiteElo "2252"]
[BlackElo "2419"]
[Annotator "ChessBase"]
[PlyCount "97"]
[EventDate "2024.09.26"]
[EventType "team-tourn"]
[EventCountry "ROU"]
[SourceTitle "playchess.com"]
[Source "ChessBase"]
[SourceQuality "1"]
[TimeControl "40/5400+30:1800+30"]

1. e4 {[%emt 0:00:03]} c5 {[%emt 0:00:36]} 2. Nf3 {[%emt 0:00:08]} d6 {[%emt 0:00:28]} 3. d4 {[%emt 0:00:08]} cxd4 {[%emt 0:00:06]} 4. Nxd4 {[%emt 0:00:05]} Nf6 {[%emt 0:00:06]} 5. Nc3 {[%emt 0:00:07]} a6 {[%emt 0:00:06]} 6. Nb3 {[%emt 0:00:06]} g6 {[%emt 0:00:35]} 7. Be2 {[%emt 0:00:07]} Bg7 {[%emt 0:00:27]} 8. g4 {[%emt 0:00:09]} h5 {[%emt 0:01:38]} 9. gxh5 {[%emt 0:08:29]} Nxh5 {[%emt 0:00:11]} 10. Bg5 {[%emt 0:09:02]} Bxc3+ {[%emt 0:06:14]} 11. bxc3 {[%emt 0:00:09]} Nc6 {[%emt 0:00:18]} 12. Qd2 {[%emt 0:09:12]} Qc7 {[%emt 0:08:06]} 13. c4 {[%emt 0:20:47]} b6 {[%emt 0:05:30]} 14. Qc3 {[%emt 0:03:42]} f6 {[%emt 0:01:57]} 15. Be3 {[%emt 0:01:06]} Be6 {[%emt 0:05:46]} 16. Rg1 {[%emt 0:08:46]} Bf7 {[%emt 0:02:26]} 17. Nd2 {[%emt 0:00:56]} Ng7 {[%emt 0:04:20]} 18. Rb1 {[%emt 0:01:42]} Rb8 {[%emt 0:00:36]} 19. Qb2 {[%emt 0:03:42]} Ne5 {[%emt 0:06:01]} 20. Qa3 {[%emt 0:04:44]} a5 {[%emt 0:03:45]} 21. Qa4+ {[%emt 0:04:28]} Nd7 {[%emt 0:03:04]} 22. Bg4 {[%emt 0:00:52]} f5 {[%emt 0:01:34]} 23. Be2 {[%emt 0:08:36]} Ne6 {[%emt 0:02:14]} 24. exf5 {[%emt 0:00:28]} gxf5 {[%emt 0:00:11]} 25. Nf3 {[%emt 0:00:08]} Rc8 {[%emt 0:09:00]} 26. Bxb6 {[%emt 0:07:26]} Qc6 {[%emt 0:00:57]} 27. Qxc6 {[%emt 0:02:14]} Rxc6 {[%emt 0:00:06]} 28. Be3 {[%emt 0:01:03]} a4 {[%emt 0:09:26]} 29. Rb4 {[%emt 0:01:49]} Rc8 {[%emt 0:08:48]} 30. Rxa4 {[%emt 0:01:58]} Nec5 {[%emt 0:08:10]} 31. Ra7 {[%emt 0:00:14]} Rb8 {[%emt 0:00:13]} 32. Kd2 {[%emt 0:01:40]} Ne4+ {[%emt 0:01:16]} 33. Kc1 {[%emt 0:00:01]} Bh5 {[%emt 0:04:40]} 34. Nd4 {[%emt 0:02:03]} Bxe2 {[%emt 0:01:19]} 35. Nxe2 {[%emt 0:00:02]} Rxh2 {[%emt 0:00:24]} 36. Nd4 {[%emt 0:00:14]} f4 {[%emt 0:00:51]} 37. Bxf4 {[%emt 0:00:32]} Rxf2 {[%emt 0:00:07]} 38. Be3 {[%emt 0:01:13]} Rf8 {[%emt 0:03:26]} 39. Ne6 {[%emt 0:00:46]} Rf3 {[%emt 0:01:31]} 40. Bd4 {[%emt 0:00:00]} Kf7 {[%emt 0:00:00]} 41. Re1 {[%emt 0:12:41]} Kxe6 {[%emt 0:07:03]} 42. Rxe4+ {[%emt 0:00:08]} Ne5 {[%emt 0:00:07]} 43. Bxe5 {[%emt 0:00:14]} dxe5 {[%emt 0:00:57]} 44. Ra5 {[%emt 0:00:06]} Rf1+ {[%emt 0:01:00]} 45. Kd2 {[%emt 0:00:02]} Rf2+ {[%emt 0:00:47]} 46. Ke3 {[%emt 0:00:01]} Rxc2 {[%emt 0:05:57]} 47. Raxe5+ {[%emt 0:00:27]} Kd7 {[%emt 0:01:01]} 48. Rxe7+ {[%emt 0:00:33]} Kd6 {[%emt 0:01:07]} 49. Kd4 {[%emt 0:00:55]} 1-0

[Event "Romanian Superliga 2024"]
[Site "Mamaia"]
[Date "2024.09.28"]
[Round "1.2"]
[White "Raceanu, Valentin"]
[Black "Erdos, Viktor"]
[Result "0-1"]
[ECO "D85"]
[WhiteElo "2427"]
[BlackElo "2538"]
[Annotator "RC"]
[PlyCount "74"]
[EventDate "2024.09.26"]
[EventType "team-tourn"]
[EventCountry "ROU"]
[SourceTitle "playchess.com"]
[Source "ChessBase"]
[SourceQuality "1"]
[TimeControl "40/5400+30:1800+30"]

1. d4 {[%emt 0:00:03]} Nf6 {[%emt 0:00:05]} 2. c4 {[%emt 0:00:08]} g6 {[%emt 0:00:05]} 3. Nc3 {[%emt 0:01:07]} d5 {[%emt 0:00:05]} 4. cxd5 {[%emt 0:00:24]} Nxd5 {[%emt 0:00:06]} 5. Bd2 {[%emt 0:01:59]} Bg7 {[%emt 0:03:41]} 6. e4 {[%emt 0:00:31]} Nxc3 {[%emt 0:00:45]} 7. Bxc3 {[%emt 0:00:06]} O-O {[%emt 0:01:29]} 8. Qd2 {[%emt 0:04:27]} c5 {[%emt 0:01:13]} 9. d5 {[%emt 0:02:11]} e6 {[%emt 0:00:22]} 10. Bc4 {[%emt 0:05:43]} Qh4 {[%emt 0:05:41]} 11. Qe3 {[%emt 0:26:36]} Bd4 {[%emt 0:07:05]} 12. Bxd4 {[%emt 0:12:27]} cxd4 {[%emt 0:01:34]} 13. Qxd4 {[%emt 0:00:05]} exd5 {[%emt 0:00:59]} 14. Bxd5 {[%emt 0:00:09]} Qg4 {[%emt 0:00:09]} 15. g3 {[%emt 0:18:28]} Nc6 {[%emt 0:00:55]} 16. Bxc6 {[%emt 0:00:07]} bxc6 {[%emt 0:00:17]} 17. f3 {[%emt 0:00:07]} Qg5 {[%emt 0:09:12]} 18. Ne2 {[%emt 0:09:40]} Rd8 {[%emt 0:03:25]} 19. Qc3 {[%emt 0:08:27]} Ba6 {[%emt 0:00:43]} 20. Nf4 {[%emt 0:00:17]} Rd3 {[%emt 0:09:21]} 21. Nxd3 {[%emt 0:05:55]} Qe3+ {[%emt 0:00:44]} 22. Kf1 {[%emt 0:00:04]} Qxf3+ {[%emt 0:29:31]} 23. Kg1 {[%emt 0:00:03]} Bxd3 {[%emt 0:00:05]} 24. Re1 {[%emt 0:00:04]} Bxe4 {[%emt 0:05:17]} 25. Qxf3 {[%emt 0:00:17]} Bxf3 {[%emt 0:00:01]} 26. Kf2 {[%emt 0:03:16]} Bxh1 {[%emt 0:00:07]} 27. Rxh1 {[%emt 0:00:02]} Kf8 {[%emt 0:03:27]} 28. Rc1 {[%emt 0:00:05]} Rb8 {[%emt 0:01:24]} 29. b3 {[%emt 0:00:15]} Rb6 {[%emt 0:00:17]} 30. Ke3 {[%emt 0:00:33]} Ke7 {[%emt 0:00:04]} 31. Kf4 {[%emt 0:00:18]} f6 {[%emt 0:00:22]} 32. g4 {[%emt 0:01:15]} Ra6 {[%emt 0:02:08]} 33. Rc2 {[%emt 0:00:18]} Kd6 {[%emt 0:00:13]} 34. Ke4 {[%emt 0:01:04]} Ra5 {[%emt 0:00:43]} 35. Rf2 {[%emt 0:00:43]} Re5+ {[%emt 0:02:00]} 36. Kf4 {[%emt 0:00:18]} h5 {[%emt 0:00:20]} 37. h3 {[%emt 0:00:54]} h4 {[%emt 0:01:28]} 0-1

[Event "Romanian Superliga 2024"]
[Site "Mamaia"]
[Date "2024.09.28"]
[Round "1.3"]
[White "Grigore, George-Gabriel"]
[Black "Soltanici, Ruslan"]
[Result "1-0"]
[ECO "E32"]
[WhiteElo "2414"]
[BlackElo "2316"]
[Annotator "ChessBase"]
[PlyCount "75"]
[EventDate "2024.09.26"]
[EventType "team-tourn"]
[EventCountry "ROU"]
[SourceTitle "playchess.com"]
[Source "ChessBase"]
[SourceQuality "1"]
[TimeControl "40/5400+30:1800+30"]

1. d4 {[%emt 0:00:06]} Nf6 {[%emt 0:00:13]} 2. c4 {[%emt 0:00:06]} e6 {[%emt 0:00:18]} 3. Nc3 {[%emt 0:00:07]} Bb4 {[%emt 0:00:13]} 4. Qc2 {[%emt 0:00:05]} O-O {[%emt 0:01:29]} 5. a3 {[%emt 0:00:32]} Bxc3+ {[%emt 0:00:12]} 6. Qxc3 {[%emt 0:00:06]} b6 {[%emt 0:00:20]} 7. Bg5 {[%emt 0:00:12]} Bb7 {[%emt 0:00:20]} 8. e3 {[%emt 0:00:16]} d6 {[%emt 0:00:52]} 9. f3 {[%emt 0:02:34]} c5 {[%emt 0:27:11]} 10. dxc5 {[%emt 0:07:29]} bxc5 {[%emt 0:02:09]} 11. Rd1 {[%emt 0:10:58]} Nc6 {[%emt 0:07:10]} 12. Nh3 {[%emt 0:07:44]} Rb8 {[%emt 0:23:00]} 13. Be2 {[%emt 0:10:25]} h6 {[%emt 0:08:28]} 14. Bxf6 {[%emt 0:03:07]} Qxf6 {[%emt 0:00:15]} 15. Qxf6 {[%emt 0:01:07]} gxf6 {[%emt 0:00:06]} 16. Rxd6 {[%emt 0:00:19]} Ba8 {[%emt 0:00:14]} 17. Rd2 {[%emt 0:04:29]} Rb3 {[%emt 0:00:52]} 18. Nf2 {[%emt 0:10:20]} Rfb8 {[%emt 0:09:42]} 19. Nd1 {[%emt 0:03:09]} Kf8 {[%emt 0:05:20]} 20. Rf1 {[%emt 0:10:21]} Ke7 {[%emt 0:01:12]} 21. Rf2 {[%emt 0:00:20]} Na5 {[%emt 0:01:19]} 22. Bf1 {[%emt 0:05:36]} Bc6 {[%emt 0:03:13]} 23. Nc3 {[%emt 0:06:55]} f5 {[%emt 0:02:15]} 24. h3 {[%emt 0:04:08]} h5 {[%emt 0:00:41]} 25. h4 {[%emt 0:00:17]} a6 {[%emt 0:00:31]} 26. Rc2 {[%emt 0:02:37]} R3b7 {[%emt 0:00:36]} 27. Rfd2 {[%emt 0:03:53]} Nb3 {[%emt 0:00:16]} 28. Rd1 {[%emt 0:01:12]} f4 {[%emt 0:00:38]} 29. exf4 {[%emt 0:01:33]} Nd4 {[%emt 0:00:10]} 30. Rf2 {[%emt 0:02:11]} Rxb2 {[%emt 0:01:00]} 31. Rxb2 {[%emt 0:00:17]} Rxb2 {[%emt 0:00:02]} 32. Rb1 {[%emt 0:00:21]} Rc2 {[%emt 0:05:14]} 33. Ne4 {[%emt 0:00:46]} Nf5 {[%emt 0:00:36]} 34. Nxc5 {[%emt 0:01:48]} Nxh4 {[%emt 0:00:13]} 35. Rb6 {[%emt 0:00:30]} Kd6 {[%emt 0:00:50]} 36. Nxa6 {[%emt 0:00:29]} Rc1+ {[%emt 0:00:45]} 37. Kf2 {[%emt 0:00:12]} Rc2+ {[%emt 0:00:27]} 38. Kg1 {[%emt 0:00:48]} 1-0

[Event "Romanian Superliga 2024"]
[Site "Mamaia"]
[Date "2024.09.28"]
[Round "1.4"]
[White "Filip, Andrei"]
[Black "Istratescu, Andrei"]
[Result "1/2-1/2"]
[ECO "B36"]
[WhiteElo "2278"]
[BlackElo "2370"]
[Annotator "ChessBase"]
[PlyCount "30"]
[EventDate "2024.09.26"]
[EventType "team-tourn"]
[EventCountry "ROU"]
[SourceTitle "playchess.com"]
[Source "ChessBase"]
[SourceQuality "1"]
[TimeControl "40/5400+30:1800+30"]

1. e4 {[%emt 0:00:06]} c5 {[%emt 0:01:34]} 2. Nf3 {[%emt 0:00:15]} Nc6 {[%emt 0:00:14]} 3. d4 {[%emt 0:01:03]} cxd4 {[%emt 0:00:35]} 4. Nxd4 {[%emt 0:00:08]} g6 {[%emt 0:09:45]} 5. c4 {[%emt 0:04:22]} Nf6 {[%emt 0:01:18]} 6. Nc3 {[%emt 0:00:12]} d6 {[%emt 0:00:26]} 7. Be2 {[%emt 0:00:39]} Nxd4 {[%emt 0:00:55]} 8. Qxd4 {[%emt 0:00:06]} Bg7 {[%emt 0:00:06]} 9. O-O {[%emt 0:01:24]} O-O {[%emt 0:01:00]} 10. Qd3 {[%emt 0:01:53]} Bd7 {[%emt 0:05:36]} 11. Be3 {[%emt 0:11:08]} a5 {[%emt 0:01:37]} 12. b3 {[%emt 0:02:12]} Bc6 {[%emt 0:01:54]} 13. Bd4 {[%emt 0:13:02]} Nd7 {[%emt 0:05:38]} 14. Bxg7 {[%emt 0:01:11]} Kxg7 {[%emt 0:01:42]} 15. Kh1 {[%emt 0:08:38]} Nc5 {[%emt 0:04:03]} 1/2-1/2

[Event "Romanian Superliga 2024"]
[Site "Mamaia"]
[Date "2024.09.28"]
[Round "1.5"]
[White "Stepanencu, Nicodim-Cosmin"]
[Black "Itkis, Boris"]
[Result "1/2-1/2"]
[ECO "B01"]
[WhiteElo "2296"]
[BlackElo "2279"]
[Annotator "ChessBase"]
[PlyCount "54"]
[EventDate "2024.09.26"]
[EventType "team-tourn"]
[EventCountry "ROU"]
[SourceTitle "playchess.com"]
[Source "ChessBase"]
[SourceQuality "1"]
[TimeControl "40/5400+30:1800+30"]

1. e4 {[%emt 0:00:04]} d5 {[%emt 0:00:24]} 2. exd5 {[%emt 0:00:08]} Qxd5 {[%emt 0:00:07]} 3. Nc3 {[%emt 0:01:21]} Qd6 {[%emt 0:00:15]} 4. d4 {[%emt 0:01:26]} Nf6 {[%emt 0:00:08]} 5. Nf3 {[%emt 0:02:17]} c6 {[%emt 0:00:48]} 6. Ne5 {[%emt 0:00:47]} Nbd7 {[%emt 0:00:26]} 7. Nc4 {[%emt 0:00:11]} Qc7 {[%emt 0:00:08]} 8. a4 {[%emt 0:08:50]} g6 {[%emt 0:03:43]} 9. Qf3 {[%emt 0:04:28]} Bg7 {[%emt 0:00:09]} 10. Bf4 {[%emt 0:00:10]} Qd8 {[%emt 0:00:01]} 11. a5 {[%emt 0:01:39]} Nb8 {[%emt 0:08:14]} 12. Be5 {[%emt 0:04:06]} O-O {[%emt 0:04:01]} 13. h3 {[%emt 0:00:24]} Be6 {[%emt 0:00:29]} 14. Ne3 {[%emt 0:01:43]} Qc8 {[%emt 0:03:51]} 15. Be2 {[%emt 0:00:58]} Nbd7 {[%emt 0:02:10]} 16. Bh2 {[%emt 0:03:10]} Rd8 {[%emt 0:06:32]} 17. O-O {[%emt 0:00:47]} b5 {[%emt 0:07:37]} 18. Rfd1 {[%emt 0:23:08]} a6 {[%emt 0:02:18]} 19. Rac1 {[%emt 0:00:18]} Nf8 {[%emt 0:02:21]} 20. Ne4 {[%emt 0:06:49]} Nxe4 {[%emt 0:10:19]} 21. Qxe4 {[%emt 0:00:05]} f5 {[%emt 0:00:19]} 22. Qf4 {[%emt 0:02:05]} Bf7 {[%emt 0:01:05]} 23. c3 {[%emt 0:00:32]} Ne6 {[%emt 0:10:27]} 24. Qf3 {[%emt 0:00:05]} Ng5 {[%emt 0:00:41]} 25. Qf4 {[%emt 0:00:50]} Ne6 {[%emt 0:00:40]} 26. Qf3 {[%emt 0:00:05]} Ng5 {[%emt 0:00:31]} 27. Qf4 {[%emt 0:09:47]} Ne6 {[%emt 0:00:24]} 1/2-1/2

[Event "Romanian Superliga 2024"]
[Site "Mamaia"]
[Date "2024.09.28"]
[Round "1.6"]
[White "Negrean, Andrei"]
[Black "Szabo, Attila"]
[Result "1-0"]
[ECO "E16"]
[WhiteElo "2267"]
[BlackElo "2137"]
[Annotator "ChessBase"]
[PlyCount "91"]
[EventDate "2024.09.26"]
[EventType "team-tourn"]
[EventCountry "ROU"]
[SourceTitle "playchess.com"]
[Source "ChessBase"]
[SourceQuality "1"]
[TimeControl "40/5400+30:1800+30"]

1. d4 {[%emt 0:00:04]} Nf6 {[%emt 0:00:50]} 2. Nf3 {[%emt 0:00:25]} e6 {[%emt 0:00:54]} 3. c4 {[%emt 0:00:52]} b6 {[%emt 0:01:02]} 4. g3 {[%emt 0:01:20]} Bb7 {[%emt 0:00:35]} 5. Bg2 {[%emt 0:00:38]} Bb4+ {[%emt 0:01:14]} 6. Bd2 {[%emt 0:02:48]} Bxd2+ {[%emt 0:01:00]} 7. Qxd2 {[%emt 0:01:27]} O-O {[%emt 0:00:14]} 8. O-O {[%emt 0:02:26]} d6 {[%emt 0:03:41]} 9. Nc3 {[%emt 0:06:14]} Nbd7 {[%emt 0:08:49]} 10. d5 {[%emt 0:04:32]} e5 {[%emt 0:08:47]} 11. b4 {[%emt 0:07:37]} Qe7 {[%emt 0:05:23]} 12. e4 {[%emt 0:04:06]} Nh5 {[%emt 0:09:05]} 13. Rac1 {[%emt 0:08:06]} g6 {[%emt 0:06:51]} 14. Qh6 {[%emt 0:04:36]} Rfe8 {[%emt 0:07:14]} 15. Rfd1 {[%emt 0:15:04]} Nhf6 {[%emt 0:07:59]} 16. h3 {[%emt 0:03:13]} a6 {[%emt 0:04:40]} 17. Ne1 {[%emt 0:03:19]} Rac8 {[%emt 0:03:41]} 18. Nd3 {[%emt 0:02:17]} c6 {[%emt 0:04:14]} 19. Qe3 {[%emt 0:04:20]} c5 {[%emt 0:07:39]} 20. bxc5 {[%emt 0:03:57]} bxc5 {[%emt 0:00:13]} 21. Rb1 {[%emt 0:00:56]} Rb8 {[%emt 0:00:02]} 22. Rb3 {[%emt 0:03:38]} Qd8 {[%emt 0:00:59]} 23. Rdb1 {[%emt 0:00:53]} Qc7 {[%emt 0:00:08]} 24. Qc1 {[%emt 0:01:23]} Ba8 {[%emt 0:03:18]} 25. Qa3 {[%emt 0:01:14]} Rxb3 {[%emt 0:00:10]} 26. axb3 {[%emt 0:02:48]} Bb7 {[%emt 0:00:07]} 27. b4 {[%emt 0:05:00]} cxb4 {[%emt 0:00:18]} 28. Rxb4 {[%emt 0:00:13]} Rb8 {[%emt 0:02:32]} 29. Qb2 {[%emt 0:02:49]} a5 {[%emt 0:04:37]} 30. Nb5 {[%emt 0:01:01]} Qb6 {[%emt 0:00:10]} 31. Rb3 {[%emt 0:00:16]} Ba6 {[%emt 0:00:07]} 32. Qa3 {[%emt 0:02:03]} Ne8 {[%emt 0:04:43]} 33. Rb2 {[%emt 0:01:17]} Bxb5 {[%emt 0:01:39]} 34. Rxb5 {[%emt 0:00:09]} Qd4 {[%emt 0:00:11]} 35. Rxb8 {[%emt 0:00:45]} Nxb8 {[%emt 0:00:02]} 36. c5 {[%emt 0:03:59]} dxc5 {[%emt 0:00:21]} 37. Nxc5 {[%emt 0:01:05]} Qb4 {[%emt 0:00:35]} 38. Qc1 {[%emt 0:00:40]} Nd6 {[%emt 0:01:40]} 39. Nd3 {[%emt 0:00:23]} Qc4 {[%emt 0:03:05]} 40. Qb2 {[%emt 0:00:00]} Nd7 {[%emt 0:00:00]} 41. Nxe5 {[%emt 0:01:31]} Nxe5 {[%emt 0:02:44]} 42. Qxe5 {[%emt 0:01:38]} Qb4 {[%emt 0:02:00]} 43. Qe7 {[%emt 0:02:52]} a4 {[%emt 0:01:08]} 44. e5 {[%emt 0:00:39]} a3 {[%emt 0:00:19]} 45. Qd8+ {[%emt 0:01:37]} Kg7 {[%emt 0:00:30]} 46. Qf6+ {[%emt 0:27:20]} 1-0

[Event "Romanian Superliga 2024"]
[Site "Mamaia"]
[Date "2024.09.28"]
[Round "1.7"]
[White "Kozak, Adam"]
[Black "Shevchenko, Kirill"]
[Result "1/2-1/2"]
[ECO "B93"]
[WhiteElo "2609"]
[BlackElo "2673"]
[Annotator "TA"]
[PlyCount "58"]
[EventDate "2024.09.26"]
[EventType "team-tourn"]
[EventCountry "ROU"]
[SourceTitle "playchess.com"]
[Source "ChessBase"]
[SourceQuality "1"]
[TimeControl "40/5400+30:1800+30"]

{[%evp 12,58,10,-9,0,0,0,0,0,-2,-8,-4,4,0,18,0,30,5,8,0,35,36,33,38,52,44,55,6,46,33,37,26,26,26,26,28,66,29,24,14,27,16,22,22,22,22,22,-12,14]} 1. e4 {[%emt 0:00:02]} c5 {[%emt 0:00:20]} 2. Nf3 {[%emt 0:00:19]} d6 {[%emt 0:00:03]} 3. d4 {[%emt 0:00:07]} cxd4 {[%emt 0:00:05]} 4. Nxd4 {[%emt 0:00:07]} Nf6 {[%emt 0:00:02]} 5. Nc3 {[%emt 0:00:09]} a6 {[%emt 0:00:02]} 6. f4 {[%emt 0:00:07]} e5 {[%emt 0:00:30]} 7. Nb3 {[%emt 0:00:14]} Nc6 {[%emt 0:00:15]} 8. Bd3 {[%emt 0:00:12]} Be7 {[%emt 0:00:07]} 9. O-O {[%emt 0:00:10]} O-O {[%emt 1:33:36]} 10. Nd5 {[%emt 0:01:59]} exf4 {[%emt 0:00:00]} 11. Nxe7+ {[%emt 0:00:09]} Qxe7 {[%emt 0:00:00]} 12. Bxf4 {[%emt 0:02:15]} h6 {[%emt 0:00:00][%cal Oc8e6] Against Bg5} 13. Qd2 {[%emt 0:15:05][%cal Oe4e5]} Be6 {[%emt 0:00:00]} 14. Rae1 {[%emt 0:02:11]} Rfe8 {[%emt 0:00:00]} 15. c3 {[%emt 0:07:25]} Bxb3 {[%emt 0:00:00]} 16. axb3 {[%emt 0:00:09]} Ne5 {[%emt 0:00:00]} 17. Bc2 {[%emt 0:02:46]} Qe6 {[%emt 0:00:00]} 18. h3 {[%emt 0:06:48]} a5 {[%emt 0:00:00]} 19. Rf2 {[%emt 0:12:28]} (19. Rd1 $14) 19... Ra6 {[%emt 0:00:00]} 20. Qe2 {[%emt 0:06:29]} Qc8 {[%emt 0:00:00]} 21. Ref1 {[%emt 0:04:44][%cal Of4h6] Black must now prevent Bxh6!} Nfd7 {[%emt 0:00:00]} 22. Be3 {[%emt 0:09:14]} Re7 {[%emt 0:00:00]} 23. Bd4 {[%emt 0:01:46]} Qc6 {[%emt 0:00:00]} 24. b4 {[%emt 0:09:41]} axb4 {[%emt 0:00:00]} 25. cxb4 {[%emt 0:00:04] [#] Threatens to win with b5.} b5 $1 {[%emt 0:00:00]} 26. Bb3 {[%emt 0:03:16] This pair of bishops is nice.} Nc4 {[%emt 0:00:00] The position is equal.} 27. Qh5 {[%emt 0:02:06]} f6 {[%emt 0:00:00]} 28. Rc1 {[%emt 0:02:49] Strongly threatening Bxc4+.} Ra8 {[%emt 0:00:00]} 29. Qd1 {[%emt 0:03:44]} Kh8 {[%emt 0:03:19] Weighted Error Value: White=0.10 (very precise) /Black=0.08 (flawless) .  Mistake:       	White=1     	---        Inaccurate:     	White=2     	Black=5      OK:         	White=6     	Black=12     Best:        	---       	Black=1      Strong:       	---       	Black=1} 1/2-1/2

[Event "Romanian Superliga 2024"]
[Site "Mamaia"]
[Date "2024.09.28"]
[Round "1.8"]
[White "Lupulescu, Constantin"]
[Black "Tarlev, Konstantin"]
[Result "1/2-1/2"]
[ECO "D38"]
[WhiteElo "2590"]
[BlackElo "2579"]
[Annotator "RC"]
[PlyCount "34"]
[EventDate "2024.09.26"]
[EventType "team-tourn"]
[EventCountry "ROU"]
[SourceTitle "playchess.com"]
[Source "ChessBase"]
[SourceQuality "1"]
[TimeControl "40/5400+30:1800+30"]

1. d4 {[%emt 0:00:03]} d5 {[%emt 0:00:09]} 2. Nf3 {[%emt 0:00:24]} Nf6 {[%emt 0:00:11]} 3. c4 {[%emt 0:00:11]} e6 {[%emt 0:00:22]} 4. Nc3 {[%emt 0:00:09]} Bb4 {[%emt 0:00:31]} 5. Bg5 {[%emt 0:00:41]} h6 {[%emt 0:00:25]} 6. Bxf6 {[%emt 0:00:11]} Qxf6 {[%emt 0:00:06]} 7. e3 {[%emt 0:00:11]} O-O {[%emt 0:00:30]} 8. Rc1 {[%emt 0:00:12]} c6 {[%emt 0:00:10]} 9. a3 {[%emt 0:05:02]} Bxc3+ {[%emt 0:02:07]} 10. Rxc3 {[%emt 0:00:16]} Nd7 {[%emt 0:00:48]} 11. Bd3 {[%emt 0:08:03]} dxc4 {[%emt 0:04:37]} 12. Bxc4 {[%emt 0:01:38]} b6 {[%emt 0:01:16]} 13. O-O {[%emt 0:07:28]} Bb7 {[%emt 0:01:52]} 14. Be2 {[%emt 0:06:33]} c5 {[%emt 0:01:05]} 15. dxc5 {[%emt 0:09:53]} Nxc5 {[%emt 0:00:13]} 16. Qd4 {[%emt 0:01:41]} Qxd4 {[%emt 0:00:56]} 17. Nxd4 {[%emt 0:01:43]} Rfc8 {[%emt 0:00:07]} 1/2-1/2